bitfinex/quotes_ETHUSD_20260202
["timestamp","ask_amount","ask_price","bid_price","bid_amount"]
[1770075237070,1.06523499,2346.9,2346.4,0.001]
[1770075237866,1.06505346,2347.3,2346.4,12.80767182]
[1770075238038,2.11972198,2347.3,2346.5,12.80667182]
[1770075241069,1.95803166,2347.4,2346.5,12.80667182]
[1770075241840,14.12604699,2347.4,2346.5,12.80667182]
[1770075246981,0.893,2347.4,2346.5,12.80667182]
[1770075247187,0.893,2347.4,2346.6,12.80667182]
[1770075247750,13.30160929,2347.7,2346.6,12.80667182]
[1770075247751,2.19849075,2347.7,2346.6,12.80667182]
[1770075247955,1.0648038,2347.9,2347.2,12.80667182]
[1770075248263,1.0647728,2348.0,2347.2,12.80667182]
[1770075248585,0.0011,2347.4,2347.2,12.80667182]
[1770075248783,1.0647728,2348.0,2347.0,12.80667182]
[1770075248953,13.23273854,2348.1,2347.0,12.80667182]
[1770075250291,0.90763331,2348.0,2347.0,12.80667182]
[1770075250457,12.16801533,2348.0,2347.0,12.80667182]
[1770075251190,1.06472321,2348.1,2347.0,12.80667182]
[1770075251376,0.90906175,2348.0,2347.0,12.80667182]
[1770075251580,0.90906175,2347.9,2347.0,12.80667182]
[1770075251756,2.19831717,2348.1,2347.0,12.80667182]
[1770075251956,0.91002645,2348.0,2347.0,13.87183939]
[1770075252157,0.91002645,2347.9,2347.0,13.87183939]
[1770075252368,0.91136016,2347.8,2347.0,13.87183939]
[1770075252566,0.91136009,2347.7,2347.0,13.87183939]
[1770075252769,1.13359396,2348.0,2347.1,12.80667182]
[1770075253091,0.91136197,2347.9,2347.1,12.80667182]
[1770075253289,1.13359396,2348.1,2347.4,12.80667182]
[1770075253771,1.13359396,2348.2,2347.4,12.80667182]
[1770075254164,2.19823945,2348.2,2347.4,12.80667182]
[1770075254386,2.19823945,2348.2,2347.6,12.80667182]
[1770075254694,1.13359396,2348.2,2347.6,12.80667182]
[1770075254890,1.13359396,2348.3,2347.6,12.80667182]
[1770075255067,1.13469396,2348.4,2347.6,12.80667182]
[1770075255261,0.0011,2348.4,2347.6,12.80667182]
[1770075255591,1.13469396,2348.4,2347.8,12.80667182]
[1770075255756,0.0011,2348.4,2347.8,12.80667182]
[1770075255958,1.06567823,2348.4,2347.6,12.80667182]
[1770075256175,1.06567823,2348.4,2347.4,12.80667182]
[1770075256176,13.23369356,2348.4,2347.4,12.80667182]
[1770075256686,12.16911533,2348.4,2347.6,12.80667182]
[1770075256906,14.18421816,2348.4,2347.6,12.80667182]
[1770075257194,2.01620283,2348.4,2347.6,12.80667182]
[1770075257394,0.0011,2348.4,2347.6,12.80667182]
[1770075260914,0.0011,2348.2,2347.6,12.80667182]
[1770075266204,0.0011,2348.2,2347.6,13.87158182]
[1770075266780,0.0011,2348.7,2347.8,12.83360083]
[1770075267181,0.0011,2348.7,2348.0,12.83360083]
[1770075267386,0.0011,2348.7,2348.2,12.83360083]
[1770075268677,1.13469396,2349.4,2348.1,12.83360083]
[1770075268899,0.91289705,2349.3,2348.1,12.83360083]
[1770075269101,0.0011,2349.4,2348.1,12.83360083]
[1770075269102,0.91289705,2349.2,2348.1,12.83360083]
[1770075269313,0.0011,2349.4,2348.3,12.83360083]
[1770075269520,0.0011,2349.4,2348.5,12.83360083]
[1770075269521,0.91263778,2349.3,2348.5,12.83360083]
[1770075269718,0.0011,2349.4,2348.5,12.83360083]
[1770075269934,0.91265298,2349.3,2348.5,12.83360083]
[1770075270224,13.25713006,2349.4,2348.5,12.83360083]
[1770075270411,0.9122365,2349.3,2348.5,12.83360083]
[1770075270584,14.49973607,2349.4,2348.5,12.83360083]
[1770075270784,0.91222375,2349.3,2348.5,12.83360083]
[1770075271098,14.4997171,2349.4,2348.5,12.83360083]
[1770075271099,12.19300551,2349.4,2348.5,12.83360083]
[1770075272697,13.25714492,2349.4,2348.5,12.83360083]
[1770075272915,0.0011,2348.5,2348.3,12.83360083]
[1770075273221,2.66322904,2349.3,2348.4,12.83360083]
[1770075273222,13.94324899,2349.3,2348.4,12.83360083]
[1770075273517,0.0011,2348.7,2348.4,12.83360083]
[1770075276700,1.06523748,2349.4,2348.6,12.83360083]
[1770075276701,0.0011,2349.4,2348.6,12.83360083]
[1770075277041,0.0011,2349.4,2348.8,12.83360083]
[1770075277185,0.0011,2349.7,2349.3,20.46257723]
[1770075278499,0.0011,2349.7,2349.3,12.83360083]
[1770075279220,0.0011,2349.7,2349.3,13.8977403]
[1770075279385,0.0011,2349.7,2349.3,12.83360083]
[1770075279584,0.0011,2349.7,2349.3,13.89774661]
[1770075280005,0.0011,2349.7,2349.3,12.83360083]
[1770075280218,0.0011,2349.7,2349.1,0.893]
[1770075280518,0.0011,2349.7,2349.1,14.79079851]
[1770075281311,0.0011,2349.7,2349.3,1.06412439]
[1770075281503,0.0011,2349.7,2349.4,12.83360083]
[1770075282415,0.0011,2349.7,2349.2,13.89775696]
[1770075282816,0.0011,2349.9,2349.5,12.83360083]
[1770075283117,0.0011,2350.1,2349.5,12.83360083]
[1770075283417,0.0011,2350.1,2349.4,1.06408339]
[1770075283418,0.0011,2350.1,2349.6,13.73937548]
[1770075283635,0.0011,2350.1,2349.6,13.72660083]
[1770075286241,0.0011,2349.9,2349.6,13.72660083]
[1770075286640,1.37066816,2350.8,2349.8,12.83360083]
[1770075287517,1.37066816,2350.8,2349.6,14.79061117]
[1770075288514,12.19190551,2350.7,2349.6,14.79061117]
[1770075288717,12.19190551,2350.5,2349.6,14.79061117]
[1770075291674,1.35625737,2350.6,2349.6,14.79061117]
[1770075292261,1.35625737,2350.6,2349.8,11.77750189]
[1770075292932,13.82256513,2350.8,2349.8,11.77750189]
[1770075294232,13.82256513,2350.8,2349.8,12.84142058]
[1770075296577,13.82256513,2350.8,2349.7,1.06396561]
[1770075297675,13.82256513,2350.8,2349.7,12.8414675]
[1770075297881,12.45190721,2350.7,2349.7,12.8414675]
[1770075298278,12.45190721,2350.7,2349.7,12.85424215]
[1770075298582,12.45190721,2350.7,2349.9,19.39590245]
[1770075298781,0.0011,2350.6,2349.9,19.39590245]
[1770075299276,12.45300721,2350.6,2349.9,19.39590245]
[1770075300387,12.45300721,2350.6,2349.9,20.45977441]
[1770075301269,0.0011,2350.6,2350.2,11.77750189]
[1770075301876,0.0011,2350.6,2350.1,7.61840056]
[1770075302086,0.0011,2350.6,2350.0,11.77750189]
[1770075302964,0.0011,2350.6,2350.2,11.77750189]
[1770075303181,0.3082806,2350.8,2350.3,19.39590245]
[1770075303390,0.3082806,2350.8,2350.4,11.77750189]
[1770075303597,0.0011,2351.1,2350.5,19.39590245]
[1770075304400,12.45190721,2350.9,2350.2,0.892]
[1770075306694,12.45190721,2350.9,2350.2,12.66950189]
[1770075306990,13.51635903,2351.1,2350.2,12.66950189]
[1770075307193,13.51635903,2351.1,2350.4,11.77750189]
[1770075307194,0.91556074,2351.0,2350.4,11.77750189]
[1770075307394,0.0011,2351.1,2350.6,11.77750189]
[1770075307694,0.0011,2351.1,2350.7,19.39590245]
[1770075307995,0.0011,2351.1,2350.7,11.77750189]
[1770075308698,4.25191883,2351.9,2350.7,11.77750189]
[1770075308699,1.52591221,2352.1,2351.1,11.77750189]
[1770075308882,13.51476355,2352.2,2351.2,11.77750189]
[1770075309264,1.52591221,2352.4,2351.2,11.77750189]
[1770075309265,12.45190721,2352.4,2351.2,12.84078369]
[1770075309495,12.45190721,2352.4,2351.4,11.77750189]
[1770075310063,13.82452421,2352.6,2351.4,11.77750189]
[1770075310269,13.82452421,2352.6,2351.2,11.77750189]
[1770075310580,12.45190721,2352.4,2351.2,12.84076574]
[1770075310775,12.45190721,2352.4,2351.4,11.77750189]
[1770075311173,1.06278961,2352.3,2351.4,11.77750189]
[1770075312070,0.0011,2352.2,2351.4,11.77750189]
[1770075312300,12.45300721,2352.2,2351.1,11.77750189]
[1770075312501,14.22968837,2352.2,2350.9,11.77750189]
[1770075312703,14.22968837,2352.2,2350.9,12.66950189]
[1770075313201,12.45190721,2352.0,2350.9,12.66950189]
[1770075313500,12.45190721,2351.8,2350.8,11.77750189]
[1770075313677,12.45190721,2351.8,2350.5,13.83548714]
[1770075313879,12.45190721,2351.8,2350.6,12.8410556]
[1770075314688,12.45190721,2351.8,2350.7,11.77750189]
[1770075314871,12.45190721,2351.8,2350.8,1.06346645]
[1770075315074,1.38033859,2351.7,2350.7,12.8537538]
[1770075315274,2.44341505,2351.7,2350.7,11.79027654]
[1770075315502,2.44341505,2351.7,2350.7,11.77750189]
[1770075315707,13.51498367,2351.7,2350.7,11.77750189]
[1770075317677,13.51498367,2351.7,2350.5,12.66950189]
[1770075317872,13.51498367,2351.7,2350.5,0.892]
[1770075318402,13.51498367,2351.7,2350.5,12.66950189]
[1770075319424,12.45190721,2351.5,2350.5,12.66950189]
[1770075319705,1.33655355,2351.4,2350.5,12.66950189]
[1770075319881,1.06324161,2351.3,2350.5,12.66950189]
[1770075321522,13.32382074,2351.3,2350.5,0.892]
[1770075322995,12.26057913,2351.1,2350.4,0.001]
[1770075323202,12.26057913,2350.9,2350.4,0.001]
[1770075325393,13.32400382,2350.9,2350.4,0.001]
[1770075326520,0.0011,2350.7,2350.4,0.001]
[1770075326920,0.0011,2350.9,2350.4,12.10940161]
[1770075327124,0.0011,2350.9,2350.6,12.10840161]
[1770075328591,0.0011,2350.9,2350.4,0.001]
[1770075329700,0.0011,2350.9,2350.4,12.10940161]
[1770075331723,0.0011,2350.9,2350.4,0.001]
[1770075332627,0.0011,2350.9,2350.4,12.10940161]
[1770075338342,12.26057913,2351.6,2350.4,0.001]
[1770075338645,0.91567909,2351.5,2350.9,12.10840161]
[1770075338945,13.32367484,2351.7,2350.9,12.10840161]
[1770075339243,0.91573902,2351.6,2350.9,12.10840161]
[1770075339420,13.32358202,2351.9,2350.9,12.10840161]
[1770075339742,0.91590542,2351.8,2351.1,12.10840161]
[1770075339930,1.06296001,2352.0,2351.1,12.10840161]
[1770075340138,0.91590345,2351.9,2351.1,12.10840161]
[1770075340339,0.91621872,2351.8,2351.1,12.10840161]
[1770075340640,1.06296001,2352.0,2351.1,12.10840161]
[1770075340826,0.916224,2351.9,2351.1,12.10840161]
[1770075341028,1.06287997,2352.1,2351.1,12.10840161]
[1770075341341,0.91620663,2352.0,2351.1,12.10840161]
[1770075341537,0.91730663,2351.9,2351.1,12.10840161]
[1770075341737,0.0011,2351.9,2351.1,12.10840161]
[1770075342541,0.0011,2351.9,2351.1,13.17171184]
[1770075342843,0.0011,2351.9,2351.1,12.10840161]
[1770075343144,13.17731162,2351.8,2350.9,12.10840161]
[1770075343349,12.26057913,2351.8,2350.9,13.17181793]
[1770075343548,0.0011,2351.9,2351.0,12.10840161]
[1770075345467,5.77725138,2352.4,2351.0,12.10840161]
[1770075345468,1.06272579,2352.5,2351.5,12.10840161]
[1770075345753,0.30993988,2352.6,2351.8,12.10840161]
[1770075346136,0.30993988,2352.6,2352.1,12.10840161]
[1770075346450,13.32301228,2353.1,2352.1,12.10840161]
[1770075349735,12.26057913,2353.1,2352.1,13.17127471]
[1770075350051,13.80626434,2353.3,2352.1,13.17127471]
[1770075352471,13.80626434,2353.3,2352.2,12.25758107]
[1770075353642,13.80626434,2353.3,2352.2,13.32040626]
[1770075354251,0.0011,2353.1,2352.2,13.32040626]
[1770075354459,0.0011,2353.1,2352.3,12.25758107]
[1770075355855,11.71852209,2353.1,2351.8,12.25758107]
[1770075356035,11.71852209,2353.1,2351.8,14.21159346]
[1770075356238,11.71852209,2353.1,2351.9,13.32053636]
[1770075356445,12.8892743,2353.0,2352.0,12.25758107]
[1770075357166,12.8892743,2353.0,2352.0,13.32050466]
[1770075357357,1.17185221,2353.0,2352.2,12.25758107]
[1770075358844,1.17185221,2353.0,2352.0,1.06289211]
[1770075358845,13.95175416,2353.0,2352.0,12.25758107]
[1770075359171,13.95175416,2353.0,2351.8,0.891]
[1770075359172,13.95175416,2353.0,2351.8,14.21156576]
[1770075359343,13.53767976,2352.9,2351.9,12.25758107]
[1770075359544,14.60021964,2352.9,2351.9,13.32054982]
[1770075360778,14.60021964,2352.9,2351.7,13.14858107]
[1770075360975,14.60021964,2352.9,2351.5,13.3207135]
[1770075361576,14.60021964,2352.9,2351.5,12.25758107]
[1770075361747,11.71742209,2352.7,2351.5,12.25758107]
[1770075362481,11.71742209,2352.7,2351.3,13.14858107]
[1770075362948,11.71742209,2352.7,2351.0,13.32094029]
[1770075363147,11.71742209,2352.7,2351.3,12.25758107]
[1770075364480,11.71742209,2352.5,2351.3,12.25758107]
[1770075364772,12.99542971,2352.4,2351.4,12.25758107]
[1770075364948,12.99542971,2352.4,2351.1,12.25758107]
[1770075365268,12.99542971,2352.4,2351.1,13.32091153]
[1770075366394,11.71742209,2352.2,2351.1,13.32091153]
[1770075367160,11.71742209,2352.2,2351.3,12.25858107]
[1770075367361,13.54835987,2352.2,2351.4,12.25758107]
[1770075367560,13.54835987,2352.2,2351.3,0.001]
[1770075367860,13.54835987,2352.2,2351.0,0.001]
[1770075367861,11.71742209,2352.0,2351.0,0.001]
[1770075368366,1.06306076,2351.7,2351.0,0.001]
[1770075370191,12.78048285,2351.7,2351.0,0.001]
[1770075370389,12.78057327,2351.5,2351.0,0.001]
[1770075371101,12.78043765,2351.8,2351.0,12.25858107]
[1770075372183,12.78043765,2351.8,2351.0,0.001]
[1770075375787,1.06301556,2351.8,2351.0,12.25858107]
[1770075376909,12.78043765,2351.8,2351.0,12.25858107]
[1770075377203,1.06310597,2351.6,2351.0,12.25858107]
[1770075378715,1.06299533,2351.9,2351.0,12.25858107]
[1770075378900,1.06293915,2352.0,2351.0,13.32194784]
[1770075379105,4.25160092,2352.1,2351.2,12.25758107]
[1770075379313,1.0628191,2352.3,2351.2,12.25758107]
[1770075379825,12.78024119,2352.3,2351.2,12.25758107]
[1770075379984,1.70313412,2352.2,2351.4,12.25758107]
[1770075380913,1.70423412,2352.2,2351.4,12.25758107]
[1770075381085,2.76709684,2352.2,2351.4,12.25758107]
[1770075381282,1.70423412,2352.2,2351.4,12.25758107]
[1770075381619,1.06395452,2352.2,2351.4,12.25758107]
[1770075382114,13.95888093,2352.2,2351.4,12.25758107]
[1770075382720,0.0011,2352.2,2351.4,12.25758107]
[1770075383300,0.0011,2352.2,2351.4,13.32077497]
[1770075383620,0.0011,2352.2,2351.6,12.35735936]
[1770075385914,1.95462444,2352.7,2351.8,12.35735936]
[1770075386116,1.06254797,2352.9,2351.8,12.35735936]
[1770075386321,0.9141715,2352.8,2351.8,12.35735936]
[1770075386523,1.06250366,2353.0,2351.8,12.35735936]
[1770075386729,1.06250366,2353.0,2351.7,0.01277465]
[1770075386730,0.91432242,2352.9,2352.1,12.35735936]
[1770075386914,0.62277025,2352.9,2352.1,12.35735936]
[1770075387121,1.06250366,2353.0,2352.1,12.35735936]
[1770075387507,0.0011,2353.1,2352.1,12.35735936]
[1770075387841,0.91438624,2353.0,2352.1,12.35735936]
[1770075388024,12.89492641,2353.0,2352.1,12.35735936]
[1770075389827,1.97696215,2352.9,2352.1,12.35735936]
[1770075390036,2.9748015,2352.9,2352.1,12.35735936]
[1770075390402,1.06355949,2353.1,2352.1,12.35735936]
[1770075390718,1.06355949,2353.1,2352.1,13.4202385]
[1770075390924,0.91429624,2353.0,2352.1,12.35735936]
[1770075391118,1.06355949,2353.1,2352.1,12.35735936]
[1770075391433,13.9584859,2353.1,2352.0,12.35735936]
[1770075392213,13.9584859,2353.1,2352.0,13.42028198]
[1770075392413,0.91394942,2353.0,2352.0,13.42028198]
[1770075392620,13.9584859,2353.1,2351.8,12.35735936]
[1770075392808,12.89492641,2352.9,2351.8,13.42037458]
[1770075393021,1.38088758,2352.8,2352.0,12.35735936]
[1770075394128,1.06356296,2353.1,2352.2,12.35735936]
[1770075395134,0.0011,2352.9,2352.2,12.35735936]
[1770075399554,0.0011,2352.9,2352.4,12.35735936]
[1770075400593,1.14089656,2353.7,2352.7,12.35735936]
[1770075400854,13.95690338,2354.1,2353.1,12.35735936]
[1770075401236,1.06197697,2354.1,2353.1,12.35735936]
[1770075402665,13.95679848,2354.4,2353.1,13.4197673]
[1770075402829,13.95677916,2354.4,2353.1,13.4197673]
[1770075403029,1.39567792,2354.3,2353.3,12.35735936]
[1770075403727,1.52591221,2355.0,2353.3,12.35735936]
[1770075403728,1.14089656,2355.1,2354.1,12.35735936]
[1770075403929,9.28276274,2356.1,2354.0,0.01277465]
[1770075403930,0.06713595,2355.6,2355.0,12.35735936]
[1770075404153,0.22221183,2356.1,2354.2,10.18008534]
[1770075404154,1.06130005,2355.7,2354.7,12.35735936]
[1770075404350,2.36789709,2355.6,2354.7,12.35735936]
[1770075405061,2.36789709,2355.6,2354.1,12.35735936]
[1770075405062,7.75952733,2355.4,2354.1,12.35735936]
[1770075405248,9.35964806,2355.3,2354.1,12.35735936]
[1770075405430,2.36789709,2355.6,2353.7,3.63159287]
[1770075405431,9.35964806,2355.5,2354.3,12.35735936]
[1770075405756,9.35964806,2355.5,2354.0,1.06198082]
[1770075405757,9.57469841,2355.4,2354.0,12.35735936]
[1770075405945,8.93228184,2355.4,2354.0,12.35735936]
[1770075406146,9.35964806,2355.3,2354.0,13.41935756]
[1770075406349,1.06148097,2355.2,2354.2,12.35735936]
[1770075407143,9.35964806,2355.3,2354.2,12.35735936]
[1770075407144,10.42110874,2355.3,2354.2,12.35735936]
[1770075407340,2.35989971,2355.2,2354.2,12.35735936]
[1770075407637,2.35989971,2355.2,2354.2,13.41929037]
[1770075407938,1.30656857,2355.6,2354.4,12.35735936]
[1770075407939,9.35964806,2355.1,2354.4,12.35735936]
[1770075408265,9.35964806,2355.1,2354.3,0.01277465]
[1770075408266,9.35964806,2355.5,2354.7,12.35735936]
[1770075409058,9.35964806,2355.5,2354.7,13.41906481]
[1770075409357,9.35964806,2355.5,2354.6,1.0744943]
[1770075409569,10.2065478,2355.5,2354.5,12.35735936]
[1770075409951,0.0011,2355.2,2354.5,12.35735936]
[1770075411470,9.14517194,2355.1,2354.5,12.35735936]
[1770075411673,0.63357873,2355.1,2353.8,13.33844011]
[1770075411853,4.89767364,2355.1,2354.0,11.70591271]
[1770075412471,7.75952733,2355.0,2354.0,11.70591271]
[1770075412678,1.0616162,2354.9,2353.8,1.6325274]
[1770075412898,5.95928984,2354.9,2353.8,1.6325274]
[1770075413053,5.95928984,2354.9,2353.8,13.33844011]
[1770075413875,1.7965282,2354.8,2353.8,13.33844011]
[1770075414070,1.7965282,2354.8,2353.8,1.6325274]
[1770075414071,9.55605553,2354.8,2353.8,1.6325274]
[1770075414690,7.75952733,2354.6,2353.2,11.70591271]
[1770075414853,6.12699993,2354.4,2353.2,11.70591271]
[1770075415384,11.02467357,2354.3,2353.2,11.70591271]
[1770075415761,1.37189073,2354.5,2353.8,11.70591271]
[1770075415989,4.24632055,2355.0,2354.0,11.71868736]
[1770075416288,4.24632055,2355.0,2354.0,11.70591271]
[1770075416792,6.0411628,2354.9,2354.0,11.70591271]
[1770075416979,1.07540069,2355.2,2354.0,12.76793432]
[1770075416980,4.89767364,2355.0,2354.0,12.76793432]
[1770075417175,4.89767364,2355.0,2354.0,11.70591271]
[1770075418770,5.95924997,2355.0,2354.0,11.70591271]
[1770075419973,4.89767364,2355.0,2354.0,12.76792809]
[1770075420171,5.95924563,2355.0,2354.0,11.70591271]
[1770075420376,6.97987301,2355.0,2354.0,11.70591271]
[1770075421061,4.89767364,2355.0,2354.0,12.76791994]
[1770075421793,5.95925559,2355.0,2354.0,11.70591271]
[1770075422185,5.95925559,2355.0,2354.0,12.59691271]
[1770075422800,5.95925559,2355.0,2354.0,13.65893197]
[1770075423898,5.95925559,2355.0,2354.2,11.70691271]
[1770075424098,1.02053684,2354.9,2354.2,11.70691271]
[1770075425398,4.89767364,2355.0,2354.2,11.70691271]
[1770075426095,5.95924844,2355.0,2354.2,11.70691271]
[1770075427765,1.0615748,2355.0,2354.2,11.70691271]
[1770075428203,4.89767364,2354.9,2354.2,11.70691271]
[1770075428374,4.89767364,2355.1,2354.2,11.70691271]
[1770075428575,0.48987736,2355.0,2354.2,11.70691271]
[1770075428985,4.89767364,2354.9,2354.2,11.70691271]
[1770075429398,4.89767364,2354.9,2354.2,0.001]
[1770075430271,1.06166128,2354.8,2354.2,0.001]
[1770075431164,7.18866121,2354.8,2353.4,12.84016992]
[1770075431370,6.12599993,2354.6,2353.5,1.13425721]
[1770075431791,6.12599993,2354.4,2353.4,12.84016992]
[1770075431980,6.12599993,2354.4,2353.4,11.70591271]
[1770075432405,5.9595604,2354.3,2353.4,11.70591271]
[1770075432578,1.63331074,2354.2,2353.4,12.76819711]
[1770075432773,1.06171792,2354.7,2353.6,12.84969691]
[1770075432973,4.89767364,2354.6,2353.6,12.84969691]
[1770075433396,4.89767364,2354.6,2353.5,12.84969691]
[1770075433810,4.89767364,2354.6,2353.5,11.70591271]
[1770075434100,1.20853915,2354.5,2353.5,11.70591271]
[1770075434310,1.20853915,2354.5,2353.5,12.84969691]
[1770075434803,1.06184165,2354.4,2353.5,12.84969691]
[1770075435016,4.89767364,2354.5,2353.5,13.91194443]
[1770075435225,1.55149356,2355.0,2353.8,11.70591271]
[1770075435226,4.24656753,2354.9,2353.8,11.70591271]
[1770075435408,0.57980611,2354.8,2353.8,11.70591271]
[1770075435907,0.57980611,2354.8,2354.0,11.70591271]
[1770075436079,4.89767364,2354.7,2354.0,11.70591271]
[1770075437078,1.0615944,2355.0,2354.0,11.70591271]
[1770075437312,4.89767364,2354.9,2354.0,11.70591271]
[1770075437701,0.0011,2354.8,2354.0,11.70591271]
[1770075438093,0.0011,2354.8,2354.2,11.70591271]
[1770075439400,0.0011,2355.0,2354.5,12.84969691]
[1770075440687,0.0011,2355.0,2354.3,1.51234295]
[1770075440688,4.77795021,2354.9,2354.3,1.1437842]
[1770075440893,5.78663402,2354.9,2354.2,13.4149311]
[1770075441817,5.78663402,2354.9,2354.1,1.1437842]
[1770075441818,5.83956996,2354.9,2354.1,1.1437842]
[1770075442181,5.83956996,2354.9,2354.0,1.1437842]
[1770075442711,1.06161975,2354.9,2354.0,1.1437842]
[1770075443087,1.06269855,2355.0,2354.0,13.4149311]
[1770075443291,4.77795021,2354.8,2354.0,14.47695286]
[1770075443491,4.77795021,2354.8,2354.1,13.4149311]
[1770075445207,5.83961557,2354.8,2354.1,13.4149311]
[1770075445782,5.83961557,2354.8,2354.0,1.1437842]
[1770075446993,1.06166536,2354.8,2354.0,1.1437842]
[1770075447209,0.53081824,2354.7,2354.0,1.1437842]
[1770075447606,1.59253683,2354.7,2354.0,1.1437842]
[1770075449408,1.59253683,2354.7,2354.0,13.4149311]
[1770075450313,0.53081824,2354.7,2354.0,13.4149311]
[1770075450517,4.77795021,2354.6,2354.0,13.4149311]
[1770075451016,4.77795021,2354.6,2354.0,14.47695277]
[1770075451220,4.77795021,2354.6,2354.2,12.2711469]
[1770075451519,1.06267896,2355.0,2354.2,12.2711469]
[1770075451686,5.30884656,2354.9,2354.2,12.2711469]
[1770075452407,5.30884656,2354.9,2354.2,12.2721469]
[1770075453422,4.77795021,2354.9,2354.2,12.2721469]
[1770075455935,4.77795021,2354.9,2354.2,13.4159311]
[1770075456440,5.83958048,2354.9,2354.2,1.1447842]
[1770075456646,5.83958048,2354.9,2354.0,1.1437842]
[1770075456942,1.19666804,2354.8,2354.0,13.4149311]
[1770075458047,1.06175146,2354.6,2353.9,2.0347842]
[1770075458244,5.83968467,2354.7,2353.9,2.0347842]
[1770075458416,1.31623526,2354.6,2353.9,14.3059311]
[1770075459858,0.30655037,2355.9,2355.3,12.2711469]
[1770075460016,0.30655037,2355.9,2355.2,1.14427607]
[1770075460219,1.36772311,2355.9,2355.2,1.14427607]
[1770075460413,14.70857264,2355.8,2355.1,1.14427607]
[1770075461237,14.72134729,2355.8,2354.9,1.14427607]
[1770075461435,14.72134729,2355.8,2354.7,2.03527607]
[1770075461638,14.72134729,2355.8,2354.8,1.14427607]
[1770075461953,1.60890704,2355.7,2354.8,1.14427607]
[1770075462151,1.06130073,2355.6,2354.8,1.14427607]
[1770075462950,1.06130073,2355.6,2354.7,1.14427607]
[1770075464132,1.06130073,2355.6,2354.7,13.41542297]
[1770075464449,1.06130073,2355.6,2354.7,1.14427607]
[1770075464654,0.69152558,2355.5,2354.7,1.14427607]
[1770075464834,13.55275306,2355.5,2354.6,1.14427607]
[1770075465646,0.0011,2355.4,2354.7,13.41542297]
[1770075466347,0.0011,2355.4,2354.9,12.2711469]
[1770075466526,0.0011,2355.4,2354.9,15.01570463]
[1770075467538,0.30655037,2355.9,2355.2,12.2711469]
[1770075469943,0.30655037,2355.9,2355.2,13.1611469]
[1770075471372,0.30655037,2355.9,2355.2,0.89]
[1770075471581,1.36772502,2355.9,2355.2,0.89]
[1770075472074,1.82179725,2355.8,2355.2,0.89]
[1770075472277,2.88304751,2355.8,2355.2,0.89]
[1770075472452,2.88304751,2355.8,2354.7,1.14427607]
[1770075472453,15.50158413,2355.8,2354.7,1.14427607]
[1770075472661,15.50158413,2355.8,2354.6,15.14059945]
[1770075472860,14.61104852,2355.7,2354.7,1.14427607]
[1770075473397,2.00528655,2355.7,2354.7,14.07885708]
[1770075473548,2.88304751,2355.8,2354.7,14.07885708]
[1770075477194,2.88304751,2355.8,2354.7,15.14054843]
[1770075479097,2.88304751,2355.8,2354.9,12.93558101]
[1770075479270,0.0011,2355.7,2354.9,12.93558101]
[1770075480396,0.0011,2355.7,2354.9,15.14144599]
[1770075480694,0.0011,2355.7,2355.0,14.87338089]
[1770075482601,0.0011,2355.7,2355.1,12.93458101]
[1770075484404,0.0011,2355.7,2355.1,14.07614099]
[1770075485207,0.0011,2355.7,2355.1,14.96614099]
[1770075485398,0.0011,2355.7,2355.1,0.89]
[1770075486288,0.0011,2355.7,2355.1,3.44823067]
[1770075486514,0.0011,2355.7,2355.2,12.93458101]
[1770075487715,0.0011,2355.7,2355.2,14.07614099]
[1770075487894,0.0011,2355.7,2355.3,14.07614099]
[1770075489214,0.0011,2355.7,2355.4,1.14155998]
[1770075490011,0.0011,2355.7,2355.4,14.07614099]
[1770075490312,0.30655037,2355.9,2355.4,14.07614099]
[1770075490313,0.12312596,2355.9,2355.5,14.07614099]
[1770075490483,0.01936701,2355.9,2355.5,1.14155998]
[1770075490909,0.01936701,2355.9,2355.4,1.14155998]
[1770075491617,0.01936701,2355.9,2355.5,1.14155998]
[1770075492402,0.01936701,2355.9,2355.5,14.07614099]
[1770075492607,0.01936701,2355.9,2355.5,15.63632523]
[1770075492806,0.0011,2355.7,2355.5,15.63632523]
[1770075493002,0.01936701,2355.9,2355.5,15.63632523]
[1770075493695,0.01936701,2355.9,2355.5,14.49476525]
[1770075493924,0.01936701,2355.9,2355.5,12.93458101]
[1770075494092,0.01936701,2355.9,2355.4,1.14255998]
[1770075494628,0.01936701,2355.9,2355.4,0.001]
[1770075499429,12.62512898,2355.9,2355.4,0.001]
[1770075501029,0.01936701,2355.9,2355.4,0.001]
[1770075501529,1.72999837,2355.9,2355.4,0.001]
[1770075501730,0.01936701,2355.9,2355.4,0.001]
[1770075502504,0.01936701,2355.9,2355.4,11.72175657]
[1770075506234,1.06089539,2356.5,2355.5,12.86231655]
[1770075506621,1.06089539,2356.5,2355.6,11.72175657]
[1770075506929,1.82315546,2356.4,2355.6,13.00818822]
[1770075507131,1.06087457,2356.6,2355.8,11.72075657]
[1770075507339,11.78140772,2356.8,2355.8,11.72075657]
[1770075507340,12.84219111,2356.8,2355.8,11.72075657]
[1770075507542,1.14581312,2357.4,2356.9,11.72075657]
[1770075507840,1.14581312,2357.4,2356.9,1.14155998]
[1770075507841,5.0,2357.4,2356.9,1.14155998]
[1770075508041,5.0,2357.4,2356.7,1.14155998]
[1770075508245,17.84192699,2357.4,2356.5,1.14155998]
[1770075508448,2.23881846,2357.3,2356.5,1.14155998]
[1770075508823,5.0,2357.2,2356.5,1.14155998]
[1770075509250,2.23881846,2357.3,2356.6,11.72075657]
[1770075509431,0.30446824,2357.5,2356.6,12.86231655]
[1770075509634,5.0,2357.4,2356.6,12.86231655]
[1770075509841,5.53044682,2357.4,2356.7,1.14155998]
[1770075510241,5.53044682,2357.4,2356.5,1.14155998]
[1770075510242,6.59094406,2357.4,2356.5,1.14155998]
[1770075510444,6.59094406,2357.4,2356.4,2.03155998]
[1770075510753,5.53044682,2357.4,2356.5,11.72075657]
[1770075510953,5.53044682,2357.4,2356.5,13.92319225]
[1770075511136,5.53044682,2357.4,2356.8,11.72075657]
[1770075512437,0.30446824,2357.5,2357.0,11.72075657]
[1770075512634,0.30446824,2357.5,2356.7,12.86231655]
[1770075512834,5.30446824,2357.5,2356.7,11.72075657]
[1770075514953,18.14632927,2357.5,2356.5,0.89]
[1770075515332,11.78140772,2357.4,2356.5,0.89]
[1770075515662,13.59604065,2357.3,2356.1,11.72075657]
[1770075515961,11.78140772,2357.2,2356.1,11.72075657]
[1770075516463,6.81463293,2357.3,2355.9,0.89]
[1770075516464,11.78140772,2357.0,2355.9,0.89]
[1770075517056,1.06071534,2356.9,2355.9,12.61075657]
[1770075517460,6.06071534,2356.9,2355.9,12.61075657]
[1770075517649,1.06071534,2356.9,2355.9,12.61075657]
[1770075517852,12.84212306,2356.9,2355.9,12.61075657]
[1770075518535,1.70849568,2356.8,2355.9,12.61075657]
[1770075518732,5.0,2356.9,2355.9,12.61075657]
[1770075518934,6.06072411,2356.9,2355.9,12.61075657]
[1770075519133,11.78140772,2356.8,2355.9,0.89]